bitfinex-derivatives/quotes_BTCF0:USTF0_20251216
["timestamp","ask_amount","ask_price","bid_price","bid_amount"]
[1765908404439,0.0114421,87416.0,87408.0,0.05728]
[1765908404631,0.3608,87421.0,87408.0,0.05728]
[1765908404632,0.18725,87414.0,87413.0,0.0114424]
[1765908405443,0.3608,87421.0,87420.0,0.2538115]
[1765908405639,0.3608,87428.0,87421.0,0.18509]
[1765908405839,0.0114397,87434.0,87421.0,0.18509]
[1765908406150,0.3608,87429.0,87421.0,0.18509]
[1765908406438,0.0114404,87429.0,87421.0,0.18509]
[1765908406943,0.00117156,87422.0,87421.0,0.18509]
[1765908407528,0.00017156,87422.0,87421.0,0.18509]
[1765908407835,0.00017156,87422.0,87421.0,0.18609]
[1765908408343,0.09117,87438.0,87437.0,0.0114392]
[1765908408943,0.09117,87438.0,87437.0,0.1047392]
[1765908409448,0.09117,87438.0,87437.0,0.0933]
[1765908409449,0.18725,87438.0,87437.0,0.0933]
[1765908409639,0.09117,87433.0,87432.0,0.05728]
[1765908409837,0.45197,87433.0,87432.0,0.05728]
[1765908410132,0.18725,87433.0,87432.0,0.15058]
[1765908410334,0.18725,87433.0,87432.0,0.24237]
[1765908410641,0.09117,87433.0,87432.0,0.24237]
[1765908410944,0.001,87433.0,87432.0,0.24237]
[1765908411642,0.18725,87446.0,87445.0,0.0114382]
[1765908411944,0.18725,87446.0,87445.0,0.1965282]
[1765908412149,0.09117,87446.0,87445.0,0.1965282]
[1765908412640,0.18725,87446.0,87445.0,0.1965282]
[1765908412833,0.18925,87446.0,87445.0,0.1047382]
[1765908413034,0.19125,87446.0,87445.0,0.1047382]
[1765908413630,0.19125,87446.0,87445.0,0.0114382]
[1765908414436,0.21647495,87446.0,87445.0,0.0114382]
[1765908415250,0.21647495,87446.0,87445.0,0.1047382]
[1765908415544,0.21447495,87446.0,87445.0,0.1047382]
[1765908416044,0.21247495,87446.0,87445.0,0.1965282]
[1765908416242,0.21247495,87446.0,87445.0,0.1975282]
[1765908416748,0.21247495,87446.0,87445.0,0.002]
[1765908417542,0.57327495,87446.0,87445.0,0.002]
[1765908417847,0.18725,87430.0,87429.0,0.00017156]
[1765908418542,0.21248856,87430.0,87429.0,0.00017156]
[1765908418754,0.22392876,87430.0,87429.0,0.00017156]
[1765908419442,0.21248856,87430.0,87429.0,0.00017156]
[1765908419844,0.21248856,87430.0,87429.0,0.18526156]
[1765908420447,0.21348856,87430.0,87429.0,0.00017156]
[1765908420642,0.57428856,87430.0,87429.0,0.00017156]
[1765908420842,0.57428856,87430.0,87410.0,0.15704522]
[1765908420843,0.1026129,87409.0,87408.0,0.15058]
[1765908421049,0.18725,87408.0,87407.0,0.0114431]
[1765908421548,0.09117,87403.0,87402.0,0.5573339]
[1765908421756,0.09117,87408.0,87407.0,0.1965332]
[1765908421941,0.1986931,87408.0,87407.0,0.1965332]
[1765908422145,0.18725,87400.0,87399.0,0.19670576]
[1765908422345,0.18725,87400.0,87399.0,0.00017156]
[1765908422844,0.21248355,87400.0,87399.0,0.00017156]
[1765908423246,0.18725,87400.0,87399.0,0.00017156]
[1765908423754,0.18925,87400.0,87399.0,0.00017156]
[1765908424353,0.18925,87400.0,87399.0,0.00117156]
[1765908425055,0.18925,87400.0,87399.0,0.00017156]
[1765908425056,0.18825,87400.0,87399.0,0.00017156]
[1765908425349,0.18925,87400.0,87399.0,0.00017156]
[1765908425552,0.18825,87400.0,87399.0,0.00017156]
[1765908425748,0.001,87400.0,87399.0,0.15690156]
[1765908426050,0.43684,87411.0,87410.0,0.1681728]
[1765908427354,0.51534,87411.0,87410.0,0.0923328]
[1765908427755,0.15454,87407.0,87406.0,0.04677]
[1765908428057,0.15454,87400.0,87399.0,0.00017156]
[1765908428762,0.15454,87400.0,87399.0,0.15690156]
[1765908429366,0.3608,87419.0,87412.0,0.1681725]
[1765908429367,0.07604,87413.0,87412.0,0.1681725]
[1765908430060,0.00017156,87416.0,87415.0,0.1681721]
[1765908431258,0.00017156,87416.0,87415.0,0.1691721]
[1765908431747,0.00017156,87416.0,87415.0,0.1681721]
[1765908431947,0.00017156,87416.0,87415.0,0.1701721]
[1765908432460,0.00017156,87416.0,87415.0,0.1721721]
[1765908433253,0.00017156,87416.0,87415.0,0.1711721]
[1765908433559,0.5267772,87453.0,87452.0,0.08089]
[1765908433764,0.1659779,87448.0,87447.0,0.0923279]
[1765908433963,0.1659779,87448.0,87447.0,0.08089]
[1765908434269,0.15454,87445.0,87444.0,0.12766]
[1765908434567,0.51534,87445.0,87444.0,0.12766]
[1765908434769,0.1659793,87437.0,87436.0,0.00017156]
[1765908435067,0.5267793,87437.0,87436.0,0.00017156]
[1765908435258,0.5267793,87437.0,87436.0,0.01161096]
[1765908436367,0.5277793,87437.0,87436.0,0.01161096]
[1765908436964,0.5277793,87437.0,87436.0,0.16834096]
[1765908436965,0.15554,87437.0,87436.0,0.16834096]
[1765908437163,0.15654,87437.0,87436.0,0.16834096]
[1765908437361,0.15554,87437.0,87436.0,0.16834096]
[1765908437667,0.1659776,87450.0,87449.0,0.0114377]
[1765908437869,0.19093687,87450.0,87449.0,0.0114377]
[1765908438267,0.17949927,87450.0,87449.0,0.1681677]
[1765908438577,0.165978,87447.0,87446.0,0.092328]
[1765908439270,0.15454,87447.0,87446.0,0.092328]
[1765908439573,0.15454,87447.0,87446.0,0.168168]
[1765908440363,0.15554,87447.0,87446.0,0.168168]
[1765908440562,0.002,87447.0,87446.0,0.168168]
[1765908440765,0.002,87447.0,87446.0,0.528968]
[1765908441163,0.0015935,87447.0,87446.0,0.528968]
[1765908441373,0.00228683,87458.0,87457.0,0.1681667]
[1765908441571,0.00228683,87458.0,87457.0,0.5289667]
[1765908441770,0.00228683,87458.0,87457.0,0.1681667]
[1765908441971,0.07832683,87458.0,87457.0,0.1681667]
[1765908442172,0.00228683,87458.0,87457.0,0.1681667]
[1765908442966,0.00528683,87458.0,87457.0,0.1681667]
[1765908444071,0.00728683,87458.0,87457.0,0.1681667]
[1765908444275,0.16182683,87458.0,87457.0,0.15673]
[1765908444573,0.15982683,87458.0,87457.0,0.15673]
[1765908444765,0.15454,87451.0,87450.0,0.04677]
[1765908444965,0.3608,87479.0,87478.0,0.15673]
[1765908445175,0.15454,87485.0,87484.0,0.15673]
[1765908445370,0.07604,87489.0,87488.0,0.1681626]
[1765908445574,0.15682578,87498.0,87497.0,0.0114314]
[1765908445879,0.00228578,87498.0,87497.0,0.1681614]
[1765908446183,0.07832578,87498.0,87497.0,0.1681614]
[1765908446481,0.15682578,87498.0,87497.0,0.15673]
[1765908447370,0.15454,87495.0,87494.0,0.04677]
[1765908447571,0.00228578,87498.0,87497.0,0.1681614]
[1765908447883,0.07832578,87498.0,87497.0,0.15773]
[1765908448070,0.07832578,87498.0,87497.0,0.1691614]
[1765908448378,0.07832578,87498.0,87497.0,0.1701614]
[1765908448783,0.07832578,87498.0,87497.0,0.15873]
[1765908448985,0.15682578,87498.0,87497.0,0.15873]
[1765908449483,0.07832578,87498.0,87497.0,0.15873]
[1765908449674,0.15682578,87498.0,87497.0,0.15873]
[1765908450186,0.07832578,87498.0,87497.0,0.15873]
[1765908450384,0.00228578,87498.0,87497.0,0.15773]
[1765908451083,0.00228578,87498.0,87497.0,0.15873]
[1765908451485,0.01371708,87498.0,87497.0,0.15873]
[1765908451676,0.08975708,87498.0,87497.0,0.15873]
[1765908451985,0.16825708,87498.0,87497.0,0.002]
[1765908452986,0.16825708,87498.0,87497.0,0.001]
[1765908453175,0.16925708,87498.0,87497.0,0.001]
[1765908453687,0.15454,87493.0,87492.0,0.160862]
[1765908453876,0.15454,87493.0,87492.0,0.14943]
[1765908454779,0.13273,87490.0,87489.0,0.00017146]
[1765908454980,0.13273,87490.0,87489.0,0.13403146]
[1765908455492,0.06633,87490.0,87489.0,0.13403146]
[1765908456287,0.06633,87495.0,87494.0,0.13386]
[1765908456480,0.00228578,87498.0,87497.0,0.13386]
[1765908457578,0.08004708,87498.0,87497.0,0.13386]
[1765908457778,0.14644708,87498.0,87497.0,0.06961]
[1765908457987,0.06633,87491.0,87490.0,0.1845423]
[1765908458674,0.13701578,87498.0,87497.0,0.0810414]
[1765908458880,0.13701578,87498.0,87497.0,0.1452914]
[1765908459084,0.13701578,87498.0,87497.0,0.13386]
[1765908459881,0.13601578,87498.0,87497.0,0.13386]
[1765908460793,0.00328578,87498.0,87497.0,0.13386]
[1765908461390,0.00428578,87498.0,87497.0,0.13386]
[1765908463297,0.4385579,87524.0,87523.0,0.13386]
[1765908463596,0.52972571,87524.0,87523.0,0.13386]
[1765908464394,0.46332571,87524.0,87523.0,0.13386]
[1765908464591,0.53072571,87524.0,87523.0,0.13386]
[1765908464992,0.13273,87522.0,87521.0,0.0114282]
[1765908465194,0.15749781,87522.0,87521.0,0.0114282]
[1765908465393,0.1441583,87521.0,87520.0,0.03925]
[1765908465594,0.16892611,87521.0,87520.0,0.03925]
[1765908465890,0.13273,87519.0,87518.0,0.0114286]
[1765908466093,0.13273,87519.0,87518.0,0.1452886]
[1765908466094,0.02476781,87519.0,87518.0,0.1452886]
[1765908466398,0.13273,87531.0,87530.0,0.17311]
[1765908466692,0.06313494,87538.0,87530.0,0.17311]
[1765908466693,0.13501474,87538.0,87537.0,0.1452862]
[1765908466896,0.02707746,87538.0,87537.0,0.1452862]
[1765908467694,0.15980746,87538.0,87537.0,0.06961]
[1765908467890,0.02707746,87538.0,87537.0,0.13386]
[1765908468590,0.02907746,87538.0,87537.0,0.13386]
[1765908468895,0.03107746,87538.0,87537.0,0.13386]
[1765908469094,0.11633,87558.0,87557.0,0.13386]
[1765908469298,0.14112524,87558.0,87557.0,0.13386]
[1765908470395,0.20752524,87558.0,87557.0,0.13386]
[1765908470700,0.13273,87550.0,87549.0,0.18470586]
[1765908470901,0.15752524,87550.0,87549.0,0.18470586]
[1765908471095,0.15752524,87550.0,87549.0,0.17328136]
[1765908471401,0.15752524,87550.0,87549.0,0.00017136]
[1765908471694,0.15752524,87550.0,87549.0,0.17328136]
[1765908471894,0.15752524,87550.0,87549.0,0.03942136]
[1765908472103,0.15952524,87550.0,87549.0,0.03942136]
[1765908472291,0.15952524,87550.0,87549.0,0.10903136]
[1765908472493,0.15952524,87550.0,87549.0,0.17328136]
[1765908472689,0.02779524,87550.0,87549.0,0.17328136]
[1765908472894,0.16052524,87550.0,87549.0,0.17328136]
[1765908473294,0.16052524,87550.0,87549.0,0.00017136]
[1765908475205,0.1441559,87539.0,87538.0,0.10886]
[1765908475405,0.16895114,87539.0,87538.0,0.10886]
[1765908475700,0.144157,87531.0,87530.0,0.17311]
[1765908476098,0.0778264,87536.0,87535.0,0.0810364]
[1765908476298,0.0778264,87536.0,87535.0,0.1452864]
[1765908476299,0.1441564,87536.0,87535.0,0.1452864]
[1765908476606,0.16895082,87536.0,87535.0,0.1452864]
[1765908476801,0.16895082,87536.0,87535.0,0.13386]
[1765908477190,0.16895082,87536.0,87535.0,0.1452865]
[1765908477410,0.00017068,87539.0,87530.0,0.04125]
[1765908477411,0.00017068,87539.0,87538.0,0.1452861]
[1765908478602,0.13290068,87539.0,87538.0,0.13386]
[1765908478792,0.13290068,87539.0,87531.0,0.3608]
[1765908478793,0.1441565,87535.0,87534.0,0.06961]
[1765908478999,0.1441565,87535.0,87534.0,0.13386]
[1765908479807,0.13273,87535.0,87534.0,0.13386]
[1765908480204,0.0777562,87538.0,87537.0,0.13386]
[1765908480508,0.1441562,87538.0,87537.0,0.13386]
[1765908480695,0.06633,87538.0,87537.0,0.13386]
[1765908481102,0.13273,87538.0,87537.0,0.13386]
[1765908481404,0.06633,87538.0,87537.0,0.13386]
[1765908482004,0.09113286,87538.0,87537.0,0.13386]
[1765908482403,0.144158,87523.0,87522.0,0.06978136]
[1765908482614,0.144158,87523.0,87510.0,0.01130816]
[1765908482615,0.1441596,87511.0,87510.0,0.01130816]
[1765908482799,0.52975853,87511.0,87510.0,0.01130816]
[1765908483003,0.1441609,87501.0,87500.0,0.03925]
[1765908483200,0.13273,87501.0,87500.0,0.050681]
[1765908483501,0.13273,87501.0,87500.0,0.120291]
[1765908483906,0.13273,87501.0,87500.0,0.184541]
[1765908484499,0.3608,87503.0,87496.0,0.01153162]
[1765908484500,0.11758,87497.0,87496.0,0.01153162]
[1765908485215,0.71956,87506.0,87496.0,0.48147162]
[1765908485403,0.14233315,87505.0,87504.0,0.0451205]
[1765908485610,0.11758,87505.0,87504.0,0.1542605]
[1765908485811,0.00017136,87509.0,87508.0,0.12057]
[1765908488517,0.00017136,87509.0,87508.0,0.12657]
[1765908489007,0.00017136,87509.0,87508.0,0.12357]
[1765908489208,0.00017136,87509.0,87508.0,0.12657]
[1765908489603,0.00017136,87509.0,87508.0,0.12357]
[1765908489919,0.00017136,87509.0,87508.0,0.12157]
[1765908490117,0.00017136,87509.0,87508.0,0.12257]
[1765908490418,0.00017136,87509.0,87508.0,0.12357]
[1765908490820,0.11758,87497.0,87496.0,0.00010002]
[1765908491005,0.51459157,87497.0,87496.0,0.00010002]
[1765908491514,0.1281619,87493.0,87480.0,0.03925]
[1765908491711,0.1279135,87481.0,87480.0,0.03925]
[1765908491911,0.4887135,87481.0,87480.0,0.03925]
[1765908492114,0.4887135,87481.0,87480.0,0.09416]
[1765908492318,0.47728,87481.0,87480.0,0.14839]
[1765908492516,0.47738002,87481.0,87480.0,0.14839]
[1765908492717,0.05834002,87481.0,87480.0,0.14839]
[1765908493015,0.00010002,87481.0,87480.0,0.14839]
[1765908493317,0.00010002,87481.0,87480.0,0.15039]
[1765908493519,0.11490002,87481.0,87480.0,0.15039]
[1765908493822,0.05794002,87481.0,87480.0,0.15039]
[1765908494605,0.00010002,87481.0,87480.0,0.15039]
[1765908495207,0.00010002,87481.0,87480.0,0.14939]
[1765908495413,0.00010002,87481.0,87480.0,0.15039]
[1765908495816,0.00010002,87481.0,87480.0,0.14939]
[1765908496014,0.00010002,87481.0,87480.0,0.15039]
[1765908497211,0.05614002,87481.0,87480.0,0.15039]
[1765908497813,0.00010002,87481.0,87480.0,0.15039]
[1765908498819,0.00010002,87481.0,87480.0,0.14939]
[1765908499419,0.05251002,87481.0,87480.0,0.15039]
[1765908500023,0.05251002,87481.0,87480.0,0.14939]
[1765908501218,0.00010002,87481.0,87480.0,0.51019]
[1765908501414,0.00017146,87489.0,87488.0,0.1205726]
[1765908501624,0.0114308,87502.0,87501.0,0.1205709]
[1765908501817,0.0114308,87502.0,87501.0,0.10914]
[1765908502724,0.09903,87506.0,87505.0,0.05491]
[1765908502914,0.00017146,87510.0,87509.0,0.1205699]
[1765908503328,0.09752146,87510.0,87509.0,0.1205699]
[1765908503518,0.04926146,87510.0,87509.0,0.1205699]
[1765908503712,0.00017146,87510.0,87509.0,0.1205699]
[1765908505120,0.00117146,87510.0,87509.0,0.1205699]
[1765908505928,0.00217146,87510.0,87509.0,0.1205699]
[1765908506728,0.00117146,87510.0,87509.0,0.1205699]
[1765908506923,0.00117146,87510.0,87509.0,0.1225699]
[1765908507523,0.00017146,87510.0,87509.0,0.1245699]
[1765908508124,0.40485,87534.0,87533.0,0.10914]
[1765908508423,0.3608,87534.0,87533.0,0.10914]
[1765908508721,0.4489,87534.0,87533.0,0.10914]
[1765908509334,0.47368584,87534.0,87533.0,0.10914]
[1765908509535,0.47468584,87534.0,87533.0,0.10914]
[1765908509732,0.47568584,87534.0,87533.0,0.10914]
[1765908510731,0.4509,87534.0,87533.0,0.10914]
[1765908511134,0.002,87534.0,87533.0,0.10914]
[1765908511432,0.00017082,87542.0,87537.0,0.1205662]
[1765908512427,0.3608,87568.0,87534.0,0.3608]
[1765908512428,0.0114228,87564.0,87554.0,0.120564]
[1765908512829,0.44772,87555.0,87554.0,0.05423]
[1765908513026,0.08692,87551.0,87550.0,0.0663344]
[1765908513336,0.08692,87551.0,87550.0,0.1205644]
[1765908514533,0.08692,87551.0,87550.0,0.10914]
[1765908514738,0.08892,87551.0,87550.0,0.10914]
[1765908515337,0.08992,87551.0,87550.0,0.10914]
[1765908516042,0.003,87551.0,87550.0,0.10914]
[1765908516239,0.04296,87551.0,87550.0,0.10914]
[1765908516428,0.0943444,87551.0,87550.0,0.10914]
[1765908516630,0.0913454,87543.0,87542.0,0.00017136]
[1765908516933,0.4521454,87543.0,87542.0,0.00017136]
[1765908517128,0.44072,87543.0,87542.0,0.09444136]
[1765908517334,0.3608,87543.0,87542.0,0.09444136]
[1765908517941,0.0898047,87549.0,87548.0,0.09427]
[1765908518138,0.11450265,87549.0,87548.0,0.09427]
[1765908518339,0.51892,87552.0,87551.0,0.09427]
[1765908518527,0.8098838,87556.0,87555.0,0.09427]
[1765908518933,0.07686,87553.0,87552.0,0.0592342]
[1765908519133,0.0114239,87555.0,87554.0,0.09427]
[1765908519339,0.0867639,87555.0,87554.0,0.09427]
[1765908519942,0.7216,87556.0,87555.0,0.1056939]
[1765908520138,0.3608,87556.0,87555.0,0.1056939]
[1765908520637,0.40047,87556.0,87555.0,0.1056939]
[1765908520838,0.07384,87552.0,87551.0,0.1056943]
[1765908521227,0.03692,87552.0,87551.0,0.1056943]
[1765908521433,0.002,87555.0,87549.0,0.02753]
[1765908521434,0.03817,87555.0,87554.0,0.105694]
[1765908521736,0.07234,87550.0,87549.0,0.02753]
[1765908521933,0.07234,87550.0,87549.0,0.1218]
[1765908522342,0.002,87552.0,87551.0,0.09427]
[1765908522932,0.03743,87552.0,87551.0,0.09427]
[1765908523143,0.002,87552.0,87551.0,0.09427]
[1765908523745,0.0714,87555.0,87554.0,0.04781]
[1765908524246,0.0694,87555.0,87554.0,0.04781]
[1765908525045,0.0734,87555.0,87554.0,0.04781]
[1765908526149,0.06504,87543.0,87542.0,0.10586686]
[1765908526941,0.03252,87543.0,87542.0,0.10586686]
[1765908527142,0.06504,87543.0,87542.0,0.10586686]
[1765908527345,0.06604,87543.0,87542.0,0.00017136]
[1765908527548,0.06604,87543.0,87542.0,0.04798136]
[1765908527841,0.06704,87543.0,87542.0,0.04798136]
[1765908528741,0.002,87543.0,87542.0,0.09444136]
[1765908529246,0.05785931,87543.0,87542.0,0.09444136]
[1765908529548,0.08825931,87543.0,87542.0,0.09444136]
[1765908530945,0.08825931,87543.0,87542.0,0.00017136]
[1765908532441,0.068068,87523.0,87517.0,0.0114288]
[1765908532650,0.02832,87517.0,87516.0,0.09427]
[1765908532839,0.41392356,87517.0,87516.0,0.09427]
[1765908533039,0.44224356,87517.0,87516.0,0.09427]
[1765908533247,0.05598,87512.0,87511.0,0.0592395]
[1765908533640,0.08078526,87512.0,87511.0,0.1056995]
[1765908534144,0.0653896,87511.0,87503.0,0.00017136]
[1765908534345,0.09019486,87511.0,87505.0,0.0114303]
[1765908534542,0.09019486,87511.0,87510.0,0.07544426]
[1765908534848,0.02480526,87511.0,87510.0,0.12190426]
[1765908535045,0.0114292,87514.0,87513.0,0.09427]
[1765908535436,0.0625428,87514.0,87513.0,0.09427]
[1765908535636,0.0625428,87514.0,87511.0,0.001]
[1765908535637,0.05262,87512.0,87511.0,0.001]
[1765908535836,0.0774236,87512.0,87511.0,0.001]
[1765908536038,0.0774236,87512.0,87511.0,0.09527]
[1765908536237,0.0248036,87512.0,87511.0,0.09427]
[1765908536737,0.0504436,87512.0,87511.0,0.09427]
[1765908537655,0.0504436,87512.0,87511.0,0.09527]
[1765908538646,0.0504436,87512.0,87511.0,0.09627]
[1765908539652,0.0504436,87512.0,87511.0,0.09527]
[1765908540047,0.0248036,87512.0,87511.0,0.09527]
[1765908540252,0.40682,87517.0,87516.0,0.09427]
[1765908540452,0.43161364,87517.0,87516.0,0.09427]
[1765908540956,0.04602,87512.0,87511.0,0.04881]
[1765908541153,0.07081405,87512.0,87511.0,0.001]
[1765908541653,0.0561496,87511.0,87510.0,0.00010426]
[1765908541855,0.0561505,87504.0,87503.0,0.00017136]
[1765908542055,0.44174455,87504.0,87503.0,0.00017136]
[1765908542853,0.0431,87499.0,87498.0,0.00211632]
[1765908543156,0.0431,87499.0,87480.0,0.02753]
[1765908543157,0.0431,87481.0,87480.0,0.02753]
[1765908543349,0.40400426,87481.0,87480.0,0.02753]
[1765908544052,0.40400426,87481.0,87480.0,0.11549]
[1765908544053,0.00010426,87481.0,87480.0,0.11549]
[1765908544546,0.00110426,87481.0,87480.0,0.11549]
[1765908545158,0.00010426,87481.0,87480.0,0.11549]
[1765908545358,0.00010426,87481.0,87480.0,0.11749]
[1765908546157,0.00010426,87481.0,87480.0,0.11649]
[1765908546662,0.00010426,87481.0,87480.0,0.11749]
[1765908547161,0.00010426,87481.0,87480.0,0.11649]
[1765908547455,0.00010426,87481.0,87480.0,0.11749]
[1765908547849,0.00010426,87481.0,87480.0,0.11649]
[1765908548048,0.00010426,87481.0,87480.0,0.11749]
[1765908548758,0.00010426,87481.0,87480.0,0.11849]
[1765908549963,0.00010426,87481.0,87480.0,0.11749]
[1765908550163,0.00010426,87481.0,87480.0,0.11949]
[1765908551760,0.00010426,87481.0,87480.0,0.11749]
[1765908551946,0.00010426,87481.0,87480.0,0.11949]
[1765908552151,4.26e-06,87481.0,87480.0,0.11949]
[1765908552564,4.26e-06,87481.0,87480.0,0.11749]
[1765908552860,4.26e-06,87481.0,87480.0,0.11949]
[1765908553362,4.26e-06,87481.0,87480.0,0.11749]
[1765908553547,4.26e-06,87481.0,87480.0,0.11949]
[1765908553961,4.26e-06,87481.0,87480.0,0.11749]
[1765908554164,0.02995426,87481.0,87480.0,0.11949]
[1765908554356,0.02995426,87481.0,87480.0,0.07934]
[1765908554554,0.02995426,87481.0,87480.0,0.03153]
[1765908555051,0.02995426,87481.0,87480.0,0.02953]
[1765908555248,0.02995426,87481.0,87480.0,0.03053]
[1765908555460,0.02995426,87481.0,87480.0,0.07273]
[1765908556152,0.02995426,87481.0,87480.0,0.02853]
[1765908556961,0.02995426,87481.0,87480.0,0.02753]
[1765908558259,0.02995426,87481.0,87472.0,0.00017147]
[1765908558260,0.0373046,87473.0,87472.0,0.09395617]
[1765908558457,0.3608,87475.0,87474.0,0.08235]
[1765908559162,4.26e-06,87481.0,87480.0,0.0368136]
[1765908560664,4.26e-06,87481.0,87480.0,0.0378136]
[1765908561164,4.26e-06,87481.0,87480.0,0.0388136]
[1765908561853,0.02132426,87481.0,87480.0,0.0388136]
[1765908562049,0.02132426,87481.0,87480.0,0.11073]
[1765908562260,0.04624385,87481.0,87480.0,0.11073]
[1765908562558,0.04624385,87481.0,87480.0,0.10873]
[1765908562773,0.04624385,87481.0,87480.0,0.10973]
[1765908562956,0.02492385,87481.0,87480.0,0.10973]
[1765908563158,0.02492385,87481.0,87480.0,0.10873]
[1765908563358,4.26e-06,87481.0,87480.0,0.02638]
[1765908563552,4.26e-06,87481.0,87480.0,0.02538]
[1765908563757,4.26e-06,87481.0,87480.0,0.02838]
[1765908564268,0.02495214,87481.0,87480.0,0.02838]
[1765908564467,0.02495214,87481.0,87480.0,0.10873]
[1765908564669,4.26e-06,87481.0,87480.0,0.02638]
[1765908565068,0.02495214,87481.0,87480.0,0.02638]
[1765908565267,4.26e-06,87481.0,87480.0,0.10873]
[1765908565462,0.02495214,87481.0,87480.0,0.10873]
[1765908565771,0.02495214,87481.0,87480.0,0.02738]
[1765908565965,0.04183214,87481.0,87480.0,0.10973]
[1765908566864,0.05326564,87481.0,87480.0,0.10773]
[1765908567070,0.04482564,87481.0,87480.0,0.10873]
[1765908567476,0.02495214,87481.0,87480.0,0.10873]
[1765908567660,0.02495214,87481.0,87480.0,0.10773]
[1765908568465,0.02495214,87481.0,87480.0,0.10873]
[1765908568871,0.02495214,87481.0,87480.0,0.10973]
[1765908569070,0.03177214,87481.0,87480.0,0.10973]
[1765908569270,0.03805214,87481.0,87480.0,0.10973]
[1765908571163,0.03805214,87481.0,87480.0,0.10873]
[1765908571365,0.03805214,87481.0,87480.0,0.10973]
[1765908571569,0.03805214,87481.0,87480.0,0.10873]
[1765908571771,0.03805214,87481.0,87480.0,0.10773]
[1765908572574,0.03805214,87481.0,87480.0,0.1191636]
[1765908572770,0.03177214,87481.0,87480.0,0.1191636]
[1765908572972,0.02495214,87481.0,87480.0,0.1191636]
[1765908573270,2.14e-06,87488.0,87487.0,0.0937827]
[1765908573475,0.00017147,87489.0,87488.0,0.08235]
[1765908574869,0.00017147,87489.0,87488.0,0.08435]
[1765908575477,0.00017147,87489.0,87488.0,0.08635]
[1765908576177,0.06403147,87489.0,87488.0,0.08435]
[1765908576474,0.06403147,87489.0,87488.0,0.002]
[1765908576682,0.06403147,87489.0,87488.0,0.003]
[1765908576978,0.06403147,87489.0,87488.0,0.03609]
[1765908577171,0.06403147,87489.0,87488.0,0.03709]
[1765908577679,0.00017147,87489.0,87488.0,0.07284]
[1765908577878,0.00017147,87489.0,87488.0,0.07184]
[1765908578675,0.00017147,87489.0,87488.0,0.07084]
[1765908579471,0.00017147,87489.0,87488.0,0.07284]
[1765908580165,0.00017147,87489.0,87488.0,0.07384]
[1765908581967,0.00017147,87489.0,87488.0,0.07284]
[1765908582180,0.00017147,87489.0,87488.0,0.07384]
[1765908583168,0.00017147,87489.0,87488.0,0.07184]
[1765908583369,0.00017147,87489.0,87488.0,0.07384]
[1765908584083,0.00017147,87489.0,87488.0,0.09566]
[1765908584279,0.06733397,87489.0,87488.0,0.09566]
[1765908584470,0.42813397,87489.0,87488.0,0.09566]
[1765908584780,0.00017147,87489.0,87488.0,0.09566]
[1765908585277,0.02501688,87489.0,87488.0,0.09566]
[1765908585872,0.05263688,87489.0,87488.0,0.09566]
[1765908586065,0.07975688,87489.0,87488.0,0.09566]
[1765908586269,0.07975688,87489.0,87488.0,0.09466]
[1765908587072,0.07975688,87489.0,87488.0,0.09366]
[1765908587372,0.07975688,87489.0,87488.0,0.09466]
[1765908587782,0.07975688,87489.0,87488.0,0.09366]
[1765908588076,0.02501688,87489.0,87488.0,0.09466]
[1765908588673,0.02501901,87489.0,87488.0,0.09466]
[1765908589072,0.43665901,87489.0,87488.0,0.09466]
[1765908589688,0.43665901,87489.0,87488.0,0.002]
[1765908590182,0.43665901,87489.0,87488.0,0.0134326]
[1765908590483,0.43665901,87489.0,87488.0,0.1060926]
[1765908590869,0.43665901,87489.0,87488.0,0.1050926]
[1765908591072,0.43765901,87489.0,87488.0,0.02282]
[1765908591272,0.0598946,87473.0,87472.0,0.08244617]
[1765908591475,0.43410642,87473.0,87472.0,0.08244617]
[1765908591774,0.3608,87482.0,87481.0,0.0822735]
[1765908591974,0.40987755,87482.0,87481.0,0.0822735]
[1765908592175,0.43410755,87482.0,87481.0,0.0822735]
[1765908593082,0.40987755,87482.0,87481.0,0.0822735]
[1765908593278,0.38564755,87482.0,87481.0,0.0822735]
[1765908594183,0.3608,87482.0,87481.0,0.0832735]
[1765908594585,0.3608,87482.0,87481.0,0.0842735]
[1765908595983,0.3608,87482.0,87481.0,0.0832735]
[1765908596186,0.3608,87482.0,87481.0,0.0842735]
[1765908597587,0.3608,87482.0,87481.0,0.0832735]
[1765908598086,0.3608,87482.0,87481.0,0.0842735]
[1765908598283,0.00017147,87489.0,87488.0,0.1040926]
[1765908599887,0.00017147,87489.0,87488.0,0.1060926]
[1765908600782,0.02502004,87489.0,87488.0,0.1060926]
[1765908600981,0.06554004,87489.0,87488.0,0.06091]
[1765908601179,0.06554004,87489.0,87488.0,0.02582]
[1765908601580,0.06554004,87489.0,87488.0,0.002]
[1765908601779,0.06554004,87489.0,87488.0,0.004]
[1765908601980,0.06554004,87489.0,87488.0,0.02582]
[1765908602190,0.06554004,87489.0,87488.0,0.09666]
[1765908602492,0.06554004,87489.0,87488.0,0.02382]
[1765908602785,0.06654004,87489.0,87488.0,0.02182]
[1765908603092,0.06654004,87489.0,87488.0,0.09366]
[1765908603480,0.06654004,87489.0,87488.0,0.09266]
[1765908603991,0.06554004,87489.0,87488.0,0.09366]
[1765908604890,0.06554004,87489.0,87488.0,0.09266]
[1765908605481,0.03582,87481.0,87480.0,0.02182]
[1765908605684,0.03582,87473.0,87472.0,0.07571617]
[1765908605883,0.39662,87473.0,87472.0,0.07571617]
[1765908606086,0.03582,87473.0,87472.0,0.07571617]
[1765908606589,0.03496,87480.0,87472.0,0.01160617]
[1765908606794,0.3608,87481.0,87480.0,0.08446]
[1765908607092,0.38562161,87481.0,87480.0,0.08446]
[1765908607390,0.38562161,87481.0,87480.0,0.08546]
[1765908607984,0.42015161,87481.0,87480.0,0.08546]
[1765908608190,0.05935161,87481.0,87480.0,0.08546]
[1765908608781,0.05935161,87481.0,87480.0,0.08446]
[1765908608982,0.02482161,87481.0,87480.0,0.08546]
[1765908609183,0.02482161,87481.0,87480.0,0.08746]
[1765908609690,0.02482161,87481.0,87480.0,0.08546]
[1765908609891,0.3608,87486.0,87485.0,0.06411]
[1765908610090,0.38562126,87486.0,87485.0,0.06411]
[1765908610994,0.00017147,87489.0,87488.0,0.0958926]
[1765908611792,0.05731704,87489.0,87488.0,0.0958926]